Cogmind - Beta 14 @@@ ROGUE MODE // 2025.01.05 @ 20:26:56 Player: Ironprostate Result: Destroyed by G-34 Mercenary with Small Laser Performance ------------- Evolutions (0) 0 Regions Visited (1) 200 Robots Destroyed (8) 40 Value Destroyed (208) 208 Prototype IDs (0) 0 Alien Tech Used (0) 0 Bonus (0) 0 TOTAL SCORE: 448 Bonus ------- None Cogmind --------- Core Integrity 0/250 Matter 270/300 Energy 100/100 System Corruption 0% Temperature Cool (6) Movement Core (50) Location -10/Materials Parts ------- > --- POWER (1) -------- (None) > --- PROPULSION (2) --- (None) > --- UTILITY (2) ------ Visual Processing Unit > --- WEAPON (2) ------- Light Assault Rifle Light Assault Rifle > --- INVENTORY (5) ---- Wheel Wheel Assault Rifle Peak State ------------ > --- POWER ------------ Light Ion Engine > --- PROPULSION ------- Aluminum Leg Aluminum Leg > --- UTILITY ---------- Visual Processing Unit > --- WEAPON ----------- EM Pulse Gun Light Assault Rifle > --- INVENTORY -------- Wheel Wheel Light Assault Rifle [Rating: 7] Favorites ----------- Power Light Ion Engine Engine Light Ion Engine Propulsion Aluminum Leg Leg Aluminum Leg Wheel Compact Wheel Utility Visual Processing Unit Device Heat Sink Processor Visual Processing Unit Weapon Light Assault Rifle Energy Gun EM Pulse Gun Ballistic Gun Light Assault Rifle Build | -11 -10 ------- Run | Yrd Mat Slots Evolved . | . . Power . | . . Propulsion . | . . Utility . | . . Weapon . | . . Parts Attached 14 | 5 9 Power 2 | 1 1 Engine 2 | 1 1 Core . | . . Reactor . | . . Propulsion 4 | 2 2 Treads . | . . Leg 2 | 2 . Wheel 2 | . 2 Hover . | . . Flight . | . . Utility 2 | . 2 Device 1 | . 1 Storage . | . . Processor 1 | . 1 Hackware . | . . Protection . | . . Artifact . | . . Weapon 6 | 2 4 Energy Gun 1 | 1 . Energy Cannon . | . . Ballistic Gun 5 | 1 4 Ballistic Cannon . | . . Launcher . | . . Special Weapon . | . . Impact Weapon . | . . Slashing Weapon . | . . Piercing Weapon . | . . Special Melee Weapon . | . . Unidentified Prototypes . | . . Parts Lost 8 | . 8 Power 2 | . 2 Propulsion 3 | . 3 Utility 1 | . 1 Weapon 2 | . 2 Highest Loss Streak 4 | . 4 To Critical Strikes . | . . Average Slot Usage (%) 79 | . 79 Engine 8 | . 8 Leg 16 | . 16 Wheel 9 | . 9 Device 5 | . 5 Processor 12 | . 12 Energy Gun 7 | . 7 Ballistic Gun 18 | . 18 Peak Build Rating 7 | 5 7 Average Rating 6 | 3 6 On Entrance 2 | . 5 Naked Turns . | . . Heaviest Build 6 | 6 6 Greatest Support 32 | 20 32 Greatest Overweight (x) . | . . Average Overweight (x) . | . . Largest Inventory Capacity 5 | 5 5 Average Capacity 5 | 5 5 Most Carried 5 | 5 5 Average Carried 3 | 2 3 Final Capacity 5 | 5 5 Final Carried 5 | 5 3 Class Distribution -------------------- 100% | Mutant Dominant Class ---------------- Mutant | -10/Materials Resources | -11 -10 ----------- Run | Yrd Mat Matter Collected 363 | 261 102 Remotely . | . . Salvage Created 252 | 47 205 Parts 19 | 3 16 Haulers Intercepted . | . . Recyclers Shooed . | . . Parts Field Recycled . | . . Retrieved Matter . | . . Parts Self-Destructed . | . . Prevented . | . . Kills | -11 -10 ------- Run | Yrd Mat Combat Hostiles Destroyed 7 | 1 6 Guns 7 | 1 6 Classes Destroyed 3 | 1 2 Watcher 1 | . 1 Swarmer 3 | . 3 Grunt 4 | 1 3 Best Kill Streak 2 | 1 2 Combat Bots Only 2 | 1 2 Max Kills in Single Turn 1 | 1 1 Gunslinging . | . . Exploded . | . . Melee . | . . Uniques/NPCs Destroyed . | . . Combat | -11 -10 -------- Run | Yrd Mat Hostile Shots Fired 101 | 17 84 Missed 24 | 6 18 Damage Taken 944 | 120 824 Core 256 | 11 245 Absorbed by Shields . | . . Core Remaining (%) 95 | 95 . Volleys Fired 67 | 11 56 Largest 2 | 2 2 Hottest 60 | 60 60 Shots Fired 105 | 22 83 Gun 105 | 22 83 Cannon . | . . Launcher . | . . Special . | . . Kinetic 87 | 11 76 Thermal . | . . Explosive . | . . Electromagnetic 18 | 11 7 Robot Hit Streak 8 | 5 8 Robot Miss Streak 5 | 4 5 Penetration Max . | . . Secondary Targets 1 | . 1 Max Gunslinging Chain 1 | . 1 Shots Hit Robots 61 | 13 48 Core Hits 19 | 3 16 Critical Kills . | . . Critical Parts Destroyed 1 | 1 . Critical Strikes 1 | 1 . Destroy 1 | 1 . Melee Attacks . | . . Impact . | . . Slashing . | . . Piercing . | . . Sneak Attacks . | . . Combat Hostiles . | . . Follow-up Attacks . | . . Damage Inflicted 545 | 153 392 Guns 545 | 153 392 Cannons . | . . Explosions . | . . Melee . | . . Ramming . | . . Kinetic 399 | 44 355 Thermal . | . . Explosive . | . . Electromagnetic 146 | 109 37 Impact . | . . Slashing . | . . Piercing . | . . Highest Corruption . | . . Average Corruption . | . . Corruption Purged . | . . Corruption Blocked . | . . Overload Shots . | . . Overflow Damage . | . . Projectiles . | . . Explosions . | . . Melee . | . . Knockbacks . | . . Impact . | . . Kinetic . | . . Secondary . | . . Self-Inflicted Damage . | . . Shots . | . . Rammed . | . . Targets Rammed . | . . Kicked . | . . Crushed . | . . Highest Temperature 76 | 64 76 Average Temperature 25 | 29 21 Received Heat Transfer 468 | 66 402 Siege Activations . | . . Robots Corrupted . | . . Combat Hostiles . | . . Parts Fried 1 | 1 . Impact Corruptions . | . . Robots Melted . | . . Combat Hostiles . | . . Parts Melted . | . . Heat Transferred . | . . Parts Sabotaged . | . . Parts Stolen . | . . Parts Stripped . | . . Power Chain Reactions . | . . Alert | -11 -10 ------- Run | Yrd Mat Peak Influence 105 | 20 105 Initial 13 | . 13 Average 50 | 3 60 Maximum Alert Level . | . . Low Security (%) 100 | 100 100 Level 1 . | . . Level 2 . | . . Level 3 . | . . Level 4 . | . . Level 5 . | . . High Security . | . . Max Security . | . . Squads Dispatched . | . . Investigation . | . . Extermination . | . . Reinforcement . | . . Assault . | . . Garrison . | . . Intercept . | . . Searches Triggered . | . . Construction Impeded . | . . Haulers Reinforced . | . . Active Scanning Responses . | . . Cargo Convoy Interrupts . | . . Stealth | -11 -10 --------- Run | Yrd Mat Distress Signals 2 | . 2 Communications Jammed . | . . Distress Signals . | . . Times Spotted 12 | 1 11 Peak Tracking Total 4 | 1 4 Tactical Retreats 1 | . 1 Traps | -11 -10 ------- Run | Yrd Mat Traps Triggered . | . . Indirectly . | . . Trap Hack Attempts . | . . Triggered . | . . Disarmed . | . . Reprogrammed . | . . Reused . | . . Traps Extracted . | . . Installed . | . . Triggered . | . . Machines | -11 -10 ---------- Run | Yrd Mat Machines Disabled . | . . Max in Single Turn . | . . Machines Repaired . | . . Machines Dismantled . | . . Machines Sabotaged . | . . Overloaded Fab Kills . | . . Hacking | -11 -10 --------- Run | Yrd Mat Machines Accessed 2 | . 2 Terminals 2 | . 2 Fabricators . | . . Repair Stations . | . . Recycling Units . | . . Scanalyzers . | . . Garrison Access . | . . Total Hacks 4 | . 4 Successful 2 | . 2 Failed 2 | . 2 Catastrophic . | . . Database Lockouts . | . . Manual 1 | . 1 Terminals 4 | . 4 Fabricators . | . . Repair Stations . | . . Recycling Units . | . . Scanalyzers . | . . Garrison Access . | . . Terminal Hacks 2 | . 2 Record 1 | . 1 Zone Layout 1 | . 1 Fabricator Hacks . | . . Repair Station Hacks . | . . Recycling Unit Hacks . | . . Scanalyzer . | . . Garrison Access Hacks . | . . Unauthorized Hacks . | . . Terminals . | . . Fabricators . | . . Repair Stations . | . . Recycling Units . | . . Scanalyzers . | . . Garrison Access . | . . Data Cores Recovered . | . . Used . | . . Hacking Detections . | . . Full Trace Events . | . . Feedback Events . | . . Feedback Blocked . | . . Robot Schematics Acquired . | . . Robots Built . | . . Authchips . | . . Time . | . . Total Robot Build Rating . | . . Part Schematics Acquired . | . . Parts Built . | . . Authchips . | . . Time . | . . Total Part Build Rating . | . . Parts Repaired . | . . Time . | . . Parts Recycled . | . . Recycled Matter . | . . Retrieved Matter . | . . Retrieved Components . | . . Parts Scanalyzed . | . . Part Schematics Acquired . | . . Parts Damaged . | . . Bothacking | -11 -10 ------------ Run | Yrd Mat Used RIF Installer . | . . Robots Hacked . | . . Non-combat . | . . Combat . | . . Robot Hacks Applied . | . . Relay Couplers Released . | . . Fabnet Peak Effective % . | . . Robots Rewired . | . . Allies Hacked . | . . Hacks Repelled . | . . Allies | -11 -10 -------- Run | Yrd Mat Total Allies . | . . Largest Group . | . . Highest-Rated Group . | . . Highest-Rated Ally . | . . Total Orders . | . . Ally Attacks . | . . Total Damage . | . . Kills . | . . Allies Corrupted . | . . Allies Melted . | . . Intel | -11 -10 ------- Run | Yrd Mat Robot Analysis Total . | . . Derelict Logs Recovered . | . . Drone Launches . | . . Drone Recoveries . | . . Exploration | -11 -10 ------------- Run | Yrd Mat Turns Passed 877 | 156 721 Spaces Moved 622 | 112 510 Core 33 | 33 . Treads . | . . Legs 397 | 79 318 Wheels 192 | . 192 Hover . | . . Flight . | . . Fastest Speed 50 | 50 100 Average Speed 110 | 99 112 Slowest Speed 120 | 120 120 Overloaded Moves . | . . Propulsion Burnouts . | . . Robots Hopped . | . . Cave-ins Triggered . | . . Exploration Rate (%) 18 | 6 31 Regions Visited 1 Branch Regions . Pre-discovered Areas . | . . Known Exits Taken . | . . Unknown Exits Taken 1 | 1 . Scrap Searched . | . . Spaces Dug . | . . Terrain Destroyed . | . . Melee . | . . Projectile . | . . AOE . | . . Terrain Rammed . | . . Walls Destroyed . | . . Machines Disabled . | . . Actions | -11 -10 --------- Run | Yrd Mat Total 727 | 137 590 Wait 7 | . 7 Move 621 | 111 510 Hop . | . . Pick Up 14 | 10 4 Fast Attach 4 | . 4 Attach 9 | 5 4 Detach . | . . Swap 1 | . 1 Drop 4 | . 4 Fire 67 | 11 56 Melee . | . . Ram . | . . Kick . | . . Crush . | . . Escape Stasis . | . . Rewire . | . . Trap . | . . Miscellaneous . | . . Route ------- -11/Scrapyard -10/Materials History --------- Turn | Location | Event 2 | -11/Scrapyard | Met Revision 17 86 | -11/Scrapyard | Discovered new exit (range 8) 157 | -11/Scrapyard | Entered Materials 300 | -10/Materials | Build established: Mutant 595 | -10/Materials | Lost 3 parts (1p1n1w) 836 | -10/Materials | Core integrity fell below 50% 862 | -10/Materials | Core integrity fell below 20% 878 | -10/Materials | Destroyed by G-34 Mercenary with Small Laser Last Messages --------------- 00637_ Lgt. Ion Engine destroyed. 00641_ R-06 Scavenger collects Flight Unit. 00643_ S-10 Pest destroyed. 00644_ R-06 Scavenger collects Flight Unit. 00649_ Connecting with Terminal... 00650_ Acquired 12 matter. 00669_ Acquired 7 matter. 00670_ Dropped Lgt. Assault Rifle. 00674_ Acquired Lgt. Assault Rifle. 00679_ Acquired 10 matter. 00694_ K-01 Serf collects debris. 00699_ R-06 Scavenger collects Lgt. Ion Engine. 00749_ Connecting with Repair Station... 00833_ Com. Wheel destroyed. 00840_ M-13 Machinist repairs G-34 Mercenary. 00855_ Lgt. Assault Rifle destroyed. 00859_ Com. Wheel destroyed. 00861_ Heat Sink destroyed. 00869_ G-47 Trooper destroyed. 00869_ Switching to secondary target: G-34 Mercenary. Map ----- +----------------------------------------------------+ | # #??? % # % #"T # ## | | # | #??###+### #"" + ## | | # #??# # # # ## | | # =#### # # # ## | | # =[%+= T + """ ######## ## | | # #### # """"" #?????# ## | | #= #??# # """"" #?????# | | # #??## ## """"" #?????# | | # #???# ## """ #?????# | | ######???# ## #?????# ## | | ?????????# #######+##?????#######? | | ????????## ##????# #?????????????? | | ????????# ###### ##????????????? | | ????????# #???########## | | ????????# #???# "T" # | | ????????# #???# # | | ????????# ##### #???# # | | ????????#######???# #???# # | | ??????????????????# #???# # | | ??????????????????# #???# """ # | | ??????????????????# #???# """ # | | ???????############ #???# """ # | | ???????# ## ##??# # | | ???????# # ########+#### | | ???????# g # | | ???????# @ =% m | | ???????# * # | | ???????# # %############ | | ???????# ## ##??????????# | | ???????# ## #???????????# | | ???????############ #???????????# | | ??????????????????# #???????????# | | ?????????????????## ##??????????## | | ?????????????????# #???????????? | | ?????????????????# #???????????? | | ?????????????????# #???????????? | | ?????????????????# #???????????? | | ?????????????????# #???????????? | | ?????????????????## ##???????????? | | ??????????????????# #????????????? | | ??????????????????# #????????????? | | ??????????????????# #????????????? | | ???????????######## #????????????? | | ???????????# # #????????????? | | ???????????# """ # #????????????? | | ???????????# """ + #????????????? | | ???????????# """ #=[ #????????????? | | ???????????# # #????????????? | | ???????????# #####????????????? | | ???????????########????????????????? | +----------------------------------------------------+ Best States ------------- Heat Dissipation 35 Energy Generation 10 Energy Capacity 125 Matter Stores 300 Matter Capacity 300 Sight Range 18 Terrain Scan Density 10 Evasion (%) 55 Item Schematics ----------------- None Robot Schematics ------------------ None Fabricated ------------ Nothing Alien Tech Used ----------------- None Achievements -------------- None Challenges ------------ None Game ------ Seed SingularityNullChip Manual? 0 Play Time 00:11:45 Cumulative 1.6 hours Start 2025.01.05 @ 20:15:55 End 2025.01.05 @ 20:26:56 Sessions 1 Manual Loads 0 Difficulty Rogue Special Mode None Game No. 2 Rogue 2 Adventurer 0 Explorer 0 Win Type - Total 0 Types 0/0/0/0/0/0/0/0/0 Lore% 5 Gallery% 2 Achievement% 2 Wizard Run 0 Options --------- Layout 0 ASCII 0 Keyboard 0 Movement Arrows Keybinds 0 Fullscreen 1 Font 24/Smallcaps Map View 76x50 Zoom Use 0% Tactical HUD 1 Map Filters NONE Filters NONE Steam 1 RUN: 2765dd0b-6d29-466e-9ffc-3219bdddaf8b